bitfinex/quotes_SOLUSD_20251007
["timestamp","ask_amount","ask_price","bid_price","bid_amount"]
[1759854487177,20.8,223.31,223.24,35.02]
[1759854487501,4.85867576,223.27,223.24,35.7]
[1759854487691,20.8,223.3,223.24,35.02]
[1759854487999,4.85867576,223.28,223.24,35.02]
[1759854488203,4.85867576,223.25,223.24,35.02]
[1759854488896,5.48867576,223.25,223.24,35.02]
[1759854489101,9.96795907,223.25,223.24,35.02]
[1759854489994,30.13795907,223.25,223.24,35.02]
[1759854490184,20.8,223.25,223.24,35.02]
[1759854490378,30.76795907,223.25,223.24,35.02]
[1759854490578,9.96795907,223.25,223.24,35.02]
[1759854490983,30.76795907,223.25,223.24,35.02]
[1759854491183,9.96795907,223.25,223.24,35.02]
[1759854491802,30.76795907,223.25,223.24,35.02]
[1759854491983,9.96795907,223.25,223.24,35.02]
[1759854494078,22.38939638,223.32,223.24,35.02]
[1759854494300,20.8,223.28,223.24,35.02]
[1759854494701,4.85867576,223.27,223.24,35.02]
[1759854495022,4.85867576,223.26,223.24,35.02]
[1759854495314,4.47767877,223.33,223.25,0.68]
[1759854495610,4.47767877,223.33,223.26,35.02]
[1759854495611,4.85867576,223.3,223.26,35.02]
[1759854496175,4.85867576,223.28,223.26,35.02]
[1759854496486,4.85867576,223.29,223.26,35.02]
[1759854496892,4.85867576,223.27,223.26,35.02]
[1759854497090,20.8,223.3,223.26,35.02]
[1759854497091,15.67468313,223.29,223.26,35.02]
[1759854497286,4.85867576,223.27,223.26,35.02]
[1759854498202,20.8,223.3,223.26,35.02]
[1759854498406,5.10831968,223.3,223.26,35.02]
[1759854498607,4.85867576,223.27,223.23,34.88]
[1759854498904,4.85867576,223.27,223.19,0.2]
[1759854498905,4.85867576,223.24,223.19,0.2]
[1759854499087,21.43,223.26,223.2,35.0]
[1759854499289,20.8,223.22,223.2,35.0]
[1759854499689,4.47928331,223.25,223.2,35.0]
[1759854499892,20.8,223.26,223.21,0.68]
[1759854500206,20.8,223.25,223.22,0.68]
[1759854500413,20.8,223.25,223.23,35.68]
[1759854500595,20.8,223.28,223.24,0.68]
[1759854500787,4.47851674,223.29,223.25,0.68]
[1759854500993,4.47851674,223.29,223.26,35.68]
[1759854501308,4.85867576,223.31,223.26,35.68]
[1759854501309,25.27868147,223.28,223.27,0.68]
[1759854501608,20.8,223.28,223.27,0.68]
[1759854501795,22.38353808,223.38,223.27,0.68]
[1759854501994,4.85867576,223.36,223.27,0.68]
[1759854502304,4.85867576,223.28,223.26,35.0]
[1759854503416,20.8,223.31,223.27,0.68]
[1759854503715,4.85867576,223.28,223.26,35.0]
[1759854504109,36.47329,223.31,223.26,35.0]
[1759854504315,30.13676627,223.31,223.27,0.68]
[1759854504911,4.47809051,223.31,223.26,35.0]
[1759854505110,4.47809051,223.31,223.27,0.68]
[1759854505290,4.47809051,223.31,223.28,0.68]
[1759854505613,4.85867576,223.32,223.28,0.68]
[1759854505614,20.8,223.29,223.28,0.68]
[1759854507403,11.19342546,223.35,223.28,0.68]
[1759854507923,20.8,223.32,223.28,0.68]
[1759854508129,20.8,223.32,223.29,0.69]
[1759854508618,20.8,223.32,223.3,0.69]
[1759854508790,20.8,223.32,223.31,35.67]
[1759854509403,4.85867576,223.36,223.31,35.67]
[1759854509608,20.8,223.33,223.32,0.69]
[1759854509906,20.8,223.34,223.32,0.69]
[1759854510695,4.47727781,223.35,223.33,0.69]
[1759854510907,16.04872304,223.42,223.34,0.69]
[1759854511123,4.85867576,223.38,223.31,34.98]
[1759854511299,25.65867576,223.38,223.32,0.69]
[1759854511502,4.85867576,223.39,223.32,0.69]
[1759854511701,20.8,223.38,223.32,0.69]
[1759854511923,25.65867576,223.38,223.32,0.69]
[1759854512218,20.8,223.38,223.32,0.69]
[1759854512511,25.65867576,223.38,223.32,0.69]
[1759854512713,20.8,223.38,223.32,0.69]
[1759854512919,20.8,223.36,223.32,0.69]
[1759854513121,11.19003165,223.42,223.33,0.69]
[1759854513301,20.8,223.39,223.33,0.69]
[1759854513631,4.85867576,223.36,223.33,0.69]
[1759854513821,4.85867576,223.37,223.31,35.67]
[1759854514390,20.8,223.39,223.32,34.96]
[1759854514391,4.85867576,223.35,223.32,34.96]
[1759854514594,4.85867576,223.33,223.32,34.96]
[1759854514813,30.13635453,223.33,223.32,34.96]
[1759854515020,25.27767877,223.33,223.32,34.96]
[1759854515200,30.13635453,223.33,223.32,34.96]
[1759854516118,9.33635453,223.33,223.32,34.96]
[1759854516315,25.27767877,223.33,223.32,34.96]
[1759854516507,30.13635453,223.33,223.32,34.96]
[1759854516917,0.63,223.42,223.32,35.65]
[1759854517214,4.85867576,223.37,223.32,35.65]
[1759854517592,4.85867576,223.34,223.32,34.96]
[1759854517818,4.85867576,223.33,223.32,34.96]
[1759854518910,9.33635453,223.33,223.32,34.96]
[1759854519401,12.65417652,223.33,223.32,34.96]
[1759854519829,13.28417652,223.33,223.32,34.96]
[1759854520110,20.8,223.3,223.28,34.9]
[1759854520331,8.17839978,223.29,223.28,34.9]
[1759854520500,20.8,223.26,223.2,0.71]
[1759854520695,20.8,223.26,223.17,10.87647521]
[1759854520696,4.85867576,223.23,223.17,0.71]
[1759854520912,4.47988531,223.22,223.17,0.71]
[1759854521205,31.99878896,223.24,223.15,39.38128625]
[1759854521206,25.27957592,223.24,223.2,35.63]
[1759854521422,25.27957592,223.24,223.21,0.71]
[1759854521611,25.27957592,223.24,223.22,0.71]
[1759854521808,20.8,223.23,223.2,34.92]
[1759854522042,20.8,223.23,223.2,35.63]
[1759854522221,20.8,223.23,223.21,0.71]
[1759854522733,15.67828582,223.24,223.21,0.71]
[1759854523118,11.1987099,223.24,223.21,0.71]
[1759854524005,11.1987099,223.24,223.2,34.92]
[1759854524006,25.27908409,223.26,223.22,0.71]
[1759854524207,20.8,223.24,223.23,0.71]
[1759854524735,9.33775985,223.26,223.2,35.63]
[1759854524954,3.32734862,223.25,223.2,35.63]
[1759854525098,4.47948396,223.24,223.2,35.63]
[1759854525301,4.47948396,223.24,223.21,0.71]
[1759854525540,20.8,223.23,223.22,0.71]
[1759854525706,20.8,223.23,223.2,34.92]
[1759854525912,20.8,223.23,223.21,0.71]
[1759854526461,4.47948396,223.24,223.22,0.71]
[1759854526635,25.27948396,223.24,223.23,0.71]
[1759854527260,4.47948396,223.24,223.2,34.92]
[1759854527439,9.33815972,223.24,223.2,34.92]
[1759854527645,4.85867576,223.22,223.2,34.92]
[1759854527942,25.65867576,223.21,223.2,34.92]
[1759854528638,28.99336299,223.21,223.2,34.92]
[1759854529256,28.61477324,223.21,223.2,34.92]
[1759854529758,34.103449,223.21,223.2,34.92]
[1759854530133,38.96212476,223.21,223.19,1e-08]
[1759854530336,38.96212476,223.21,223.03,0.2]
[1759854530337,20.8,223.17,223.07,0.71]
[1759854530656,4.85867576,223.11,223.07,0.71]
[1759854531051,4.85867576,223.11,223.08,0.71]
[1759854531242,4.48229493,223.1,223.09,35.61]
[1759854531448,4.48229493,223.1,223.09,34.9]
[1759854531758,4.48209922,223.11,223.09,34.9]
[1759854532358,21.43,223.17,223.1,0.71]
[1759854532672,20.8,223.12,223.1,0.71]
[1759854533244,4.48209403,223.11,223.1,0.71]
[1759854533543,20.8,223.12,223.1,0.71]
[1759854533748,25.28201209,223.12,223.09,34.9]
[1759854533969,4.85867576,223.1,223.09,34.9]
[1759854534950,5.48867576,223.1,223.09,34.9]
[1759854535470,9.97097069,223.1,223.09,34.9]
[1759854535860,4.48229493,223.1,223.09,34.9]
[1759854536050,9.34097069,223.1,223.09,34.9]
[1759854536259,20.8,223.07,223.03,0.2]
[1759854536580,4.85867576,223.04,223.03,0.2]
[1759854536786,4.85867576,223.05,223.03,0.2]
[1759854537245,4.48350071,223.04,223.03,0.2]
[1759854537450,4.48350071,223.04,223.03,35.08]
[1759854538876,4.48350071,223.04,223.03,35.76]
[1759854539061,9.34160104,223.07,223.03,35.76]
[1759854539468,20.5488454,223.07,223.03,35.76]
[1759854539791,20.5488454,223.07,223.03,0.2]
[1759854539792,25.65867576,223.04,223.03,0.2]
[1759854539952,25.65867576,223.04,223.03,35.08]
[1759854540278,5.11239192,223.1,223.03,35.08]
[1759854540458,4.48239192,223.1,223.04,0.68]
[1759854540859,20.8,223.08,223.04,0.68]
[1759854541175,20.8,223.07,223.05,0.68]
[1759854541475,4.48309871,223.06,223.03,35.08]
[1759854541976,4.48309871,223.06,223.04,0.68]
[1759854542151,4.48309871,223.06,223.05,0.68]
[1759854542559,20.8,223.07,223.05,0.68]
[1759854542758,20.8,223.07,223.06,0.68]
[1759854543173,25.28303148,223.07,223.06,0.68]
[1759854543563,25.28303148,223.07,223.03,35.08]
[1759854543762,25.28303148,223.07,223.04,0.68]
[1759854543988,20.8,223.08,223.05,0.68]
[1759854544275,20.8,223.08,223.06,0.68]
[1759854544452,28.55909507,223.08,223.07,34.86]
[1759854544653,8.38909507,223.08,223.07,34.86]
[1759854544871,25.28247973,223.1,223.07,34.86]
[1759854545173,33.0415748,223.1,223.07,34.86]
[1759854545382,44.24731213,223.1,223.07,34.86]
[1759854545678,36.48821706,223.1,223.07,34.86]
[1759854545850,25.28247973,223.1,223.07,34.86]
[1759854546052,20.8,223.09,223.07,35.54]
[1759854546251,20.8,223.09,223.07,34.86]
[1759854546488,4.48247973,223.1,223.08,0.68]
[1759854546690,4.48247973,223.1,223.07,34.86]
[1759854546691,20.8,223.09,223.07,34.86]
[1759854546871,20.8,223.09,223.08,0.68]
[1759854547481,7.75909507,223.14,223.08,0.68]
[1759854547664,4.48169228,223.13,223.08,0.68]
[1759854547858,20.8,223.11,223.08,0.68]
[1759854548283,20.8,223.11,223.09,0.68]
[1759854548598,20.8,223.11,223.1,0.68]
[1759854548894,4.48129061,223.15,223.1,0.68]
[1759854549079,4.48129061,223.15,223.11,34.84]
[1759854549266,20.8,223.13,223.11,34.84]
[1759854549777,4.48168807,223.14,223.11,34.84]
[1759854549990,20.8,223.13,223.12,0.68]
[1759854551174,20.8,223.13,223.11,34.84]
[1759854551477,20.8,223.13,223.11,35.52]
[1759854551670,20.8,223.13,223.12,0.68]
[1759854551973,25.28169228,223.13,223.12,0.68]
[1759854552154,20.8,223.13,223.12,0.68]
[1759854552553,25.28169228,223.13,223.11,34.84]
[1759854552757,25.28169228,223.13,223.12,0.68]
[1759854553271,18.9610677,223.18,223.12,0.68]
[1759854553459,18.9610677,223.18,223.13,0.68]
[1759854553460,4.480889,223.17,223.13,0.68]
[1759854553655,4.480889,223.17,223.14,0.68]
[1759854553874,20.8,223.16,223.15,34.82]
[1759854556076,25.2810898,223.16,223.15,34.82]
[1759854556312,25.2,223.19,223.15,34.82]
[1759854556495,4.48068823,223.18,223.15,34.82]
[1759854557207,28.55909507,223.16,223.1,0.68]
[1759854557399,20.8,223.16,223.11,34.8]
[1759854558115,4.48129061,223.15,223.11,35.48]
[1759854558423,33.03959564,223.19,223.12,0.68]
[1759854558590,33.03959564,223.19,223.11,34.8]
[1759854558591,28.55909507,223.16,223.11,34.8]
[1759854558794,7.75909507,223.16,223.12,34.8]
[1759854559033,20.8,223.17,223.12,34.8]
[1759854559034,7.75909507,223.14,223.12,34.8]
[1759854559197,20.8,223.17,223.08,0.68]
[1759854559198,7.75909507,223.13,223.08,0.68]
[1759854559396,7.75909507,223.12,223.09,34.8]
[1759854559600,7.75909507,223.1,223.03,0.88]
[1759854559803,0.63,223.11,223.04,34.78]
[1759854560040,7.75909507,223.09,223.04,34.78]
[1759854560226,4.48269679,223.08,223.04,34.78]
[1759854560549,0.63,223.11,223.05,0.68]
[1759854560550,7.75909507,223.1,223.05,0.68]
[1759854560936,7.75909507,223.06,223.03,0.2]
[1759854561248,21.43,223.09,223.04,34.78]
[1759854561537,7.75909507,223.05,223.03,0.2]
[1759854561721,7.75909507,223.04,223.03,0.2]
[1759854561926,28.55909507,223.04,223.03,34.98]
[1759854562137,16.20103812,223.04,223.02,34.92]
[1759854562455,32.51753741,223.03,223.02,34.92]
[1759854562831,32.51753741,223.03,222.99,0.2]
[1759854563029,7.75909507,223.0,222.99,0.2]
[1759854563545,7.75909507,223.0,222.99,34.98]
[1759854564245,12.2434,223.0,222.99,34.98]
[1759854565113,15.57427276,223.0,222.99,34.98]
[1759854566743,7.81517769,223.0,222.99,34.98]
[1759854566919,15.57427276,223.0,222.99,34.98]
[1759854570831,7.81517769,223.0,222.99,34.98]
[1759854571031,15.57427276,223.0,222.99,34.98]
[1759854571841,7.81517769,223.0,222.99,34.98]
[1759854572038,7.81517769,223.0,222.99,35.7]
[1759854572343,24.13087276,223.0,222.99,34.98]
[1759854572539,36.37427276,223.0,222.99,0.2]
[1759854572749,37.00427276,223.0,222.99,34.94]
[1759854573257,40.33813834,223.0,222.99,34.94]
[1759854573953,40.33813988,223.0,222.99,34.94]
[1759854574651,39.70813988,223.0,222.99,34.94]
[1759854575436,31.94904481,223.0,222.99,34.94]
[1759854575642,39.70813988,223.0,222.99,34.94]
[1759854577938,33.0434,223.0,222.99,34.94]
[1759854578353,25.28430493,223.0,222.99,34.94]
[1759854578548,4.48430493,223.0,222.99,34.94]
[1759854578765,25.28390945,223.02,222.99,35.66]
[1759854578966,20.8,223.01,223.0,0.72]
[1759854579144,20.8,223.01,222.99,34.94]
[1759854579652,23.45135692,223.04,223.0,0.69]
[1759854579837,20.8,223.01,223.0,0.69]
[1759854580044,20.8,223.01,222.99,34.94]
[1759854580563,12.2434,223.0,222.99,0.2]
[1759854580752,12.2434,223.0,222.99,34.9]
[1759854581282,12.8734,223.0,222.99,34.9]
[1759854581842,12.2434,223.0,222.99,34.9]
[1759854583043,15.57577113,223.0,222.99,34.9]
[1759854583259,15.57577113,223.0,222.94,0.69]
[1759854583460,24.76237113,222.99,222.92,0.69]
[1759854583951,24.13237113,222.99,222.98,0.89]
[1759854584154,20.8,222.99,222.98,0.89]
[1759854584350,25.28450603,222.99,222.98,35.57]
[1759854587050,4.48428175,223.01,222.98,35.57]
[1759854587241,20.8,223.0,222.99,0.69]
[1759854587450,20.8,223.04,223.0,0.69]
[1759854587649,3.33000858,223.03,223.01,0.69]
[1759854587853,3.33000858,223.03,223.02,0.69]
[1759854588062,15.6901421,223.07,223.02,0.69]
[1759854588278,20.8,223.04,222.98,0.89]
[1759854588456,20.8,223.0,222.98,0.2]
[1759854588777,20.8,223.0,222.99,34.66]
[1759854589375,20.8,223.0,222.98,0.2]
[1759854589376,21.43,223.0,222.98,0.2]
[1759854589674,20.8,223.0,222.98,0.2]
[1759854589864,3.09509039,222.99,222.98,0.2]
[1759854590465,7.57959642,222.99,222.98,34.86]
[1759854591564,28.37959642,222.99,222.98,34.86]
[1759854591760,29.00959642,222.99,222.98,34.86]
[1759854592664,32.33922799,222.99,222.98,34.86]
[1759854592976,31.70922799,222.99,222.98,34.86]
[1759854597374,28.6141376,222.99,222.98,34.86]
[1759854598289,31.9465175,222.99,222.98,34.86]
[1759854598689,28.6141376,222.99,222.98,34.86]
[1759854598988,28.6141376,222.99,222.98,35.55]
[1759854599179,28.6141376,222.99,222.98,34.86]
[1759854600177,28.6141376,222.99,222.98,35.55]
[1759854600577,28.6141376,222.99,222.98,34.86]
[1759854600880,28.6141376,222.99,222.93,0.69]
[1759854600881,43.1611794,222.99,222.93,0.69]
[1759854601082,20.8,222.95,222.93,0.69]
[1759854601666,20.8,222.96,222.93,0.69]
[1759854601864,10.87647521,223.05,222.94,34.58]
[1759854602177,6.6750219,223.04,222.95,0.69]
[1759854602487,17.45030785,223.11,222.95,0.69]
[1759854602488,2.33949205,223.12,222.96,10.87647521]
[1759854602793,6.67905515,223.11,222.98,10.87647521]
[1759854603094,6.67905515,223.1,223.0,10.87647521]
[1759854603279,6.67905515,223.09,223.01,0.69]
[1759854603596,3.33953078,223.08,223.02,34.58]
[1759854603892,3.33953078,223.07,223.03,0.69]
[1759854604073,0.63,223.18,223.03,0.69]
[1759854604263,6.68356556,223.17,223.04,10.87647521]
[1759854604467,6.68356556,223.16,223.06,10.87647521]
[1759854604690,6.68356556,223.16,223.02,53.83312867]
[1759854604691,3.34178278,223.15,223.08,10.87647521]
[1759854604875,3.34178278,223.14,223.09,0.69]
[1759854605088,36.48170616,223.19,223.1,34.58]
[1759854605281,27.48484268,223.18,223.11,0.69]
[1759854605479,3.34242134,223.17,223.11,0.69]
[1759854605698,15.67749159,223.25,223.11,5.17199971]
[1759854605893,6.67978572,223.24,223.12,0.69]
[1759854606084,20.8,223.2,223.12,0.69]
[1759854606397,1.97791309,223.16,223.13,34.56]
[1759854606598,1.97791309,223.14,223.13,34.56]
[1759854606902,6.67978572,223.14,223.13,34.56]
[1759854607403,6.67646812,223.14,223.13,34.56]
[1759854607609,3.33989286,223.14,223.13,34.56]
[1759854607791,7.8213843,223.14,223.13,34.56]
[1759854608685,7.8213843,223.14,223.13,35.25]
[1759854608876,25.28149144,223.14,223.13,35.25]
[1759854609408,4.48149144,223.14,223.13,35.25]
[1759854609699,15.68522004,223.14,223.09,35.65]
[1759854609909,20.8,223.15,223.13,34.54]
[1759854610107,3.33294184,223.14,223.13,34.54]
[1759854610779,3.33294184,223.14,223.13,34.52]
[1759854610977,7.81443328,223.14,223.13,34.52]
[1759854611388,20.8,223.11,223.09,34.96]
[1759854611591,20.8,223.11,223.09,35.65]
[1759854611794,20.8,223.11,223.1,0.69]
[1759854612282,15.68522004,223.14,223.1,0.69]
[1759854612499,36.48522004,223.14,223.1,0.69]
[1759854612700,36.48522004,223.14,223.11,35.21]
[1759854613012,20.8,223.11,223.09,34.96]
[1759854613210,4.48229493,223.1,223.09,34.96]
[1759854613379,11.2037286,223.14,223.09,34.96]
[1759854613583,20.8,223.17,223.1,34.5]
[1759854613887,20.8,223.17,223.11,0.69]
[1759854614421,11.20075717,223.2,223.11,0.69]
[1759854614919,20.8,223.17,223.11,0.69]
[1759854615099,4.4810898,223.16,223.11,0.69]
[1759854615714,22.39641657,223.25,223.11,0.69]
[1759854615895,20.8,223.21,223.11,0.69]
[1759854616089,20.8,223.21,223.12,34.5]
[1759854616286,20.8,223.21,223.13,0.69]
[1759854616796,20.8,223.21,223.14,34.48]
[1759854616997,20.8,223.21,223.14,35.17]
[1759854617196,25.28028673,223.2,223.14,34.48]
[1759854617399,25.28028673,223.2,223.15,0.69]
[1759854617400,4.48028673,223.2,223.15,0.69]
[1759854617708,15.68100357,223.2,223.16,0.69]
[1759854617911,15.68100357,223.2,223.17,0.69]
[1759854618095,4.48028673,223.2,223.18,0.69]
[1759854618292,25.28028673,223.2,223.19,34.48]
[1759854618890,25.28028673,223.2,223.19,0.69]
[1759854619094,4.48008684,223.21,223.19,35.17]
[1759854619313,11.19940129,223.23,223.2,0.69]
[1759854619812,11.19940129,223.23,223.21,0.69]
[1759854620012,4.47948396,223.24,223.22,0.69]
[1759854620222,4.47948396,223.24,223.23,0.69]
[1759854620924,4.47948396,223.24,223.19,34.48]
[1759854621132,4.47948396,223.24,223.14,10.87647521]
[1759854621133,15.67819386,223.24,223.2,0.69]
[1759854621309,11.1987099,223.24,223.21,34.46]
[1759854622028,11.1987099,223.24,223.21,35.15]
[1759854622230,4.47928331,223.25,223.22,0.69]
[1759854622407,25.27907759,223.27,223.23,0.69]
[1759854622603,25.27907759,223.27,223.24,0.69]
[1759854623031,25.27907759,223.27,223.21,34.46]
[1759854623324,25.27907759,223.27,223.25,0.69]
[1759854623823,25.27888207,223.27,223.26,0.69]
[1759854624029,20.8,223.27,223.26,0.69]
[1759854624206,20.8,223.28,223.23,0.69]
[1759854624402,20.8,223.28,223.24,34.44]
[1759854624805,20.8,223.32,223.25,0.69]
[1759854625003,20.8,223.3,223.25,0.69]
[1759854625226,20.8,223.28,223.24,34.44]
[1759854625440,4.47888207,223.27,223.24,35.13]
[1759854626004,4.47888207,223.27,223.25,0.69]
[1759854626803,15.67608724,223.27,223.24,34.44]
[1759854627408,15.67608724,223.27,223.24,35.11]
[1759854627636,15.67608724,223.27,223.24,34.44]
[1759854627931,0.63,223.35,223.25,0.67]
[1759854628138,11.19440255,223.33,223.25,0.67]
[1759854628607,31.99440255,223.33,223.25,0.67]
[1759854629324,20.8,223.33,223.25,0.67]
[1759854630410,36.47194582,223.33,223.25,0.67]
[1759854631115,25.27767965,223.33,223.25,0.67]
[1759854631528,25.90767965,223.33,223.25,0.67]
[1759854631835,37.10187657,223.33,223.25,0.67]
[1759854632032,25.67101479,223.3,223.2,0.67]
[1759854632219,25.67101479,223.3,223.21,34.38]
[1759854632539,25.67101479,223.3,223.2,0.67]
[1759854632540,20.8,223.3,223.2,0.67]
[1759854632838,4.87101479,223.27,223.21,34.38]
[1759854633041,5.50101479,223.27,223.21,34.38]
[1759854633523,15.67678938,223.26,223.21,34.38]
[1759854633723,16.30678938,223.26,223.22,34.38]
[1759854634232,16.30678938,223.26,223.15,0.67]
[1759854634233,20.8,223.23,223.15,0.67]
[1759854634432,20.8,223.23,223.16,34.36]
[1759854634912,20.8,223.23,223.17,0.67]
[1759854635307,25.67101479,223.23,223.11,13.63718057]
[1759854635513,10.87647521,223.28,223.13,0.67]
[1759854635514,4.87101479,223.21,223.13,0.67]
[1759854636016,0.63,223.23,223.13,0.67]
[1759854636214,20.8,223.2,223.13,0.67]
[1759854637109,0.63,223.2,223.1,22.17160071]
[1759854637312,0.63,223.2,223.11,35.03]
[1759854637553,15.68170616,223.19,223.11,35.03]
[1759854637921,20.8,223.16,223.11,35.03]
[1759854638124,0.63,223.15,223.12,34.34]
[1759854638333,20.8,223.16,223.12,34.34]
[1759854638847,21.43,223.21,223.13,0.7]
[1759854639047,20.8,223.19,223.13,0.7]
[1759854639611,5.50101479,223.19,223.14,34.34]
[1759854639842,0.63,223.18,223.14,34.34]
[1759854640025,0.63,223.17,223.14,34.34]
[1759854640229,0.63,223.16,223.14,34.34]
[1759854640618,4.87101479,223.18,223.14,34.34]
[1759854640830,0.63,223.18,223.14,34.34]
[1759854641021,21.43,223.21,223.14,34.34]
[1759854641223,21.43,223.21,223.14,35.04]
[1759854641444,4.87101479,223.19,223.14,34.34]
[1759854641646,0.63,223.18,223.14,34.34]
[1759854641825,20.8,223.21,223.14,34.34]
[1759854642020,14.11312013,223.2,223.14,35.04]
[1759854642235,34.91312013,223.2,223.14,35.04]
[1759854643238,24.83225806,223.2,223.14,35.04]
[1759854643556,20.8,223.2,223.14,35.04]
[1759854643855,24.83233226,223.2,223.14,35.04]
[1759854644148,34.91297742,223.2,223.15,22.29103968]
[1759854644443,20.8,223.2,223.16,0.7]
[1759854644643,20.8,223.2,223.14,34.34]
[1759854644644,24.83237493,223.2,223.14,34.34]
[1759854644943,20.8,223.2,223.16,0.7]
[1759854645541,20.8,223.2,223.12,0.7]
[1759854645854,0.63,223.19,223.13,34.32]
[1759854646227,20.8,223.2,223.13,34.32]
[1759854646429,20.8,223.2,223.13,35.02]
[1759854646632,21.43,223.2,223.13,35.02]
[1759854647923,21.43,223.2,223.13,0.7]
[1759854648142,20.8,223.2,223.13,0.7]
[1759854648446,20.8,223.2,223.14,34.3]
[1759854648827,1.97761881,223.16,223.09,34.96]
[1759854649043,1.97761881,223.16,223.1,34.3]
[1759854649222,0.63,223.17,223.1,34.3]
[1759854649223,2.60761881,223.17,223.1,34.3]
[1759854649419,2.60761881,223.17,223.1,35.0]
[1759854649739,0.63,223.17,223.1,35.0]
[1759854649928,1.97761881,223.21,223.11,0.7]
[1759854650144,20.8,223.18,223.11,0.7]
[1759854650541,10.87647521,223.26,223.11,0.7]
[1759854650747,1.97761881,223.21,223.11,0.7]
[1759854650954,20.8,223.17,223.12,34.28]
[1759854651653,1.97761881,223.19,223.12,34.98]
[1759854651856,2.60761881,223.2,223.12,34.28]
[1759854652057,20.8,223.16,223.12,34.28]
[1759854652263,20.8,223.16,223.13,0.7]
[1759854653242,20.8,223.16,223.14,0.7]
[1759854653444,20.8,223.16,223.12,34.98]
[1759854653651,1.79251624,223.15,223.13,0.7]
[1759854654438,1.79227529,223.18,223.14,34.98]
[1759854654641,1.79227529,223.18,223.15,34.96]
[1759854655166,6.27296352,223.18,223.15,34.26]
[1759854655339,20.8,223.16,223.15,34.26]
[1759854655541,20.8,223.16,223.09,34.96]
[1759854655542,6.27408801,223.14,223.09,34.96]
[1759854655755,6.27408801,223.14,223.1,34.26]
[1759854656376,6.27408801,223.14,223.1,34.96]
[1759854657161,8.95993441,223.22,223.1,34.96]
[1759854657162,0.63,223.24,223.11,0.68]
[1759854657354,20.8,223.22,223.11,0.68]
[1759854657566,1.7920344,223.21,223.11,0.68]
[1759854657746,1.7920344,223.21,223.11,5.16208874]
[1759854657942,1.7920344,223.21,223.12,0.68]
[1759854658338,0.63,223.2,223.12,0.68]
[1759854658755,20.8,223.16,223.13,34.24]
[1759854659042,21.43,223.18,223.13,34.24]
[1759854659272,0.63,223.17,223.13,34.24]
[1759854659644,6.27352572,223.16,223.13,34.24]
[1759854659965,0.63,223.15,223.13,34.24]
[1759854660181,6.27352572,223.16,223.13,34.24]
[1759854660673,6.90352572,223.16,223.13,34.24]
[1759854661169,6.27352572,223.16,223.13,34.24]
[1759854661750,20.8,223.14,223.13,34.24]
[1759854663185,4.87235929,223.15,223.13,34.24]
[1759854663467,20.8,223.1,223.02,34.92]
[1759854663669,4.87235929,223.05,223.01,0.68]